bitfinex-derivatives/quotes_BTCF0:USTF0_20260214
["timestamp","ask_amount","ask_price","bid_price","bid_amount"]
[1771113287520,6e-07,69793.0,69792.0,0.10417434]
[1771113287716,0.71429299,69809.0,69794.0,0.014335]
[1771113287917,0.71429299,69809.0,69792.0,0.10417434]
[1771113287918,4.2e-07,69793.0,69792.0,0.08981434]
[1771113288113,4.2e-07,69793.0,69792.0,0.028696]
[1771113288114,6e-07,69793.0,69792.0,0.028696]
[1771113288321,0.71429299,69809.0,69796.0,0.014335]
[1771113288520,0.71429299,69809.0,69792.0,0.09093454]
[1771113288521,8.1e-07,69793.0,69792.0,0.09093454]
[1771113288720,9.8e-07,69793.0,69792.0,0.014336]
[1771113288922,0.71429299,69809.0,69796.0,0.028695]
[1771113289121,6e-07,69793.0,69792.0,0.09093454]
[1771113289315,9.8e-07,69793.0,69792.0,0.014336]
[1771113289517,0.71429299,69809.0,69800.0,0.014334]
[1771113289716,6.1e-07,69793.0,69792.0,0.07547834]
[1771113289917,0.71429299,69809.0,69792.0,0.01436]
[1771113290117,0.71429299,69809.0,69799.0,0.014334]
[1771113290311,7.5e-07,69793.0,69792.0,0.07547834]
[1771113290517,0.01436,69810.0,69792.0,0.71099648]
[1771113290718,5.5e-07,69793.0,69792.0,0.80081082]
[1771113290921,0.01436,69810.0,69805.0,0.014333]
[1771113291125,0.01436,69810.0,69804.0,0.014333]
[1771113291325,0.01436,69810.0,69806.0,0.09447838]
[1771113291524,0.01436,69810.0,69804.0,0.1804416]
[1771113291723,0.01436,69810.0,69799.0,0.65373161]
[1771113292024,0.01436,69812.0,69807.0,0.09437839]
[1771113292219,0.01436,69812.0,69804.0,0.16600742]
[1771113292426,0.01436,69812.0,69804.0,0.014333]
[1771113292627,0.01436,69812.0,69808.0,0.08664975]
[1771113292824,0.01436,69812.0,69805.0,0.15827889]
[1771113293020,0.01436,69812.0,69800.0,0.014334]
[1771113293226,0.01436,69812.0,69799.0,0.63946453]
[1771113293227,0.01436,69812.0,69809.0,0.15827889]
[1771113293429,0.01436,69812.0,69805.0,0.15888927]
[1771113293622,0.01436,69812.0,69810.0,0.16131569]
[1771113293815,0.01436,69812.0,69810.0,0.08968677]
[1771113294018,0.01436,69812.0,69806.0,0.17564869]
[1771113294216,0.01436,69812.0,69806.0,0.014333]
[1771113294423,0.01436,69812.0,69807.0,0.16131569]
[1771113294624,0.01436,69812.0,69807.0,0.08968389]
[1771113294824,0.01436,69812.0,69803.0,0.1648401]
[1771113295025,0.01436,69812.0,69803.0,0.09321404]
[1771113295225,0.01436,69812.0,69806.0,0.014333]
[1771113295525,0.01436,69812.0,69807.0,0.15031469]
[1771113295726,0.01436,69812.0,69807.0,0.09301651]
[1771113295916,0.01436,69812.0,69807.0,0.02139046]
[1771113296121,0.01436,69812.0,69807.0,0.014333]
[1771113296319,0.01436,69812.0,69805.0,0.09302163]
[1771113296516,0.01436,69812.0,69808.0,0.078687]
[1771113296719,0.01436,69812.0,69806.0,0.1019835]
[1771113296921,0.01436,69812.0,69807.0,0.08746449]
[1771113297425,0.01436,69812.0,69807.0,0.03017143]
[1771113297620,0.01436,69812.0,69806.0,0.014333]
[1771113297825,0.01436,69812.0,69808.0,0.16504984]
[1771113298025,0.01436,69812.0,69807.0,0.16504984]
[1771113298427,0.01436,69812.0,69809.0,0.11438061]
[1771113298625,0.01436,69812.0,69808.0,0.15335218]
[1771113298825,0.01436,69812.0,69810.0,0.15335218]
[1771113299129,0.01436,69812.0,69807.0,0.014332]
[1771113299327,0.01436,69812.0,69803.0,0.014333]
[1771113299629,0.01436,69812.0,69808.0,0.08172264]
[1771113299929,0.01436,69812.0,69807.0,0.014332]
[1771113300125,0.71536702,69820.0,69809.0,0.16612458]
[1771113300329,0.71536702,69818.0,69809.0,0.16612458]
[1771113300525,0.71536702,69816.0,69801.0,0.014334]
[1771113300730,0.71536702,69814.0,69800.0,0.014334]
[1771113300924,0.71536702,69814.0,69798.0,0.00869648]
[1771113301325,5.2e-07,69794.0,69790.0,0.03633009]
[1771113301522,0.01436,69802.0,69798.0,0.014334]
[1771113301724,5.9e-07,69794.0,69791.0,0.17488467]
[1771113302130,5.9e-07,69794.0,69791.0,0.01436]
[1771113302326,0.01436,69805.0,69796.0,0.014335]
[1771113302532,0.71536702,69794.0,69792.0,0.05426038]
[1771113302733,0.72972702,69798.0,69789.0,0.014336]
[1771113302932,0.01436,69797.0,69794.0,0.10783901]
[1771113303134,0.01436,69797.0,69794.0,0.03619962]
[1771113303332,0.01436,69797.0,69795.0,0.00190111]
[1771113303533,0.01436,69797.0,69795.0,0.16601447]
[1771113303735,0.01436,69797.0,69795.0,0.09436702]
[1771113303937,0.01436,69797.0,69794.0,0.0943761]
[1771113304135,0.01436,69797.0,69788.0,0.014336]
[1771113304329,0.01436,69797.0,69795.0,0.16601447]
[1771113304531,0.01436,69797.0,69795.0,0.09436605]
[1771113304838,0.01436,69797.0,69788.0,0.028672]
[1771113305039,0.01436,69796.0,69785.0,0.01436]
[1771113305338,0.01436,69796.0,69793.0,0.08180483]
[1771113305542,0.01436,69796.0,69789.0,0.014336]
[1771113305841,0.01436,69795.0,69794.0,0.08091659]
[1771113306041,0.01436,69796.0,69793.0,0.15256481]
[1771113306337,0.01436,69796.0,69790.0,0.014336]
[1771113306534,0.01436,69797.0,69794.0,0.15264893]
[1771113306734,0.01436,69797.0,69791.0,0.014336]
[1771113307238,0.01436,69797.0,69788.0,0.01436]
[1771113307537,0.01436,69797.0,69791.0,0.014336]
[1771113307738,0.01436,69797.0,69788.0,0.01436]
[1771113308433,0.01436,69797.0,69789.0,0.014336]
[1771113308639,0.01436,69797.0,69788.0,0.01436]
[1771113308840,0.01436,69797.0,69791.0,0.014336]
[1771113309236,0.01436,69797.0,69787.0,0.01436]
[1771113309432,0.01436,69797.0,69791.0,0.014336]
[1771113309638,0.01436,69797.0,69787.0,0.01436]
[1771113309943,0.01436,69797.0,69787.0,0.71099648]
[1771113310134,0.01436,69797.0,69793.0,0.014335]
[1771113310334,0.01436,69797.0,69792.0,0.014336]
[1771113310534,0.01436,69797.0,69787.0,0.68235855]
[1771113310535,0.01436,69797.0,69787.0,0.65372215]
[1771113310733,0.71536702,69807.0,69787.0,0.62508607]
[1771113310935,0.15764,69806.0,69792.0,0.014336]
[1771113311136,0.15764,69806.0,69788.0,0.69663648]
[1771113311336,0.15764,69806.0,69788.0,0.66799975]
[1771113311644,0.87300702,69806.0,69788.0,0.59635542]
[1771113311939,0.87300702,69806.0,69788.0,0.52470987]
[1771113312140,0.87300702,69806.0,69788.0,0.45306431]
[1771113312341,0.87300702,69806.0,69788.0,0.41009076]
[1771113312535,0.87300702,69806.0,69788.0,0.33844623]
[1771113312935,0.87300702,69806.0,69788.0,0.26680068]
[1771113313132,0.87300702,69806.0,69788.0,0.19515512]
[1771113313330,0.87300702,69806.0,69788.0,0.014336]
[1771113313530,0.87300702,69806.0,69790.0,0.014336]
[1771113313738,5.3e-07,69787.0,69786.0,0.014337]
[1771113313940,0.01436,69800.0,69786.0,0.028697]
[1771113314142,0.01436,69800.0,69788.0,0.014336]
[1771113314342,5.8e-07,69787.0,69786.0,0.01436]
[1771113314537,0.01436,69800.0,69786.0,0.01436]
[1771113314843,1.7e-07,69787.0,69786.0,0.028697]
[1771113315047,0.01436,69800.0,69786.0,0.01436]
[1771113315243,1.7e-07,69787.0,69786.0,0.028697]
[1771113315542,0.01436,69800.0,69789.0,0.014336]
[1771113315743,0.01436,69800.0,69790.0,0.01436]
[1771113315934,3.3e-07,69787.0,69785.0,0.014337]
[1771113316130,0.01436,69800.0,69787.0,0.014337]
[1771113316335,5.6e-07,69787.0,69786.0,0.01436]
[1771113316535,0.01436,69800.0,69788.0,0.09907431]
[1771113316746,0.01436,69800.0,69790.0,0.014336]
[1771113317046,0.01436,69800.0,69791.0,0.13066594]
[1771113317340,0.01436,69800.0,69791.0,0.01436]
[1771113317744,0.01436,69800.0,69790.0,0.01436]
[1771113317938,1e-08,69787.0,69786.0,0.14332]
[1771113318138,0.01436,69800.0,69789.0,0.014336]
[1771113318339,5.6e-07,69787.0,69786.0,0.14332]
[1771113318541,1.7e-07,69787.0,69786.0,0.15912586]
[1771113318743,1.7e-07,69787.0,69786.0,0.17230434]
[1771113318947,1.7e-07,69787.0,69786.0,0.18519548]
[1771113319449,0.01436,69800.0,69786.0,0.18664134]
[1771113319657,7.6e-07,69787.0,69786.0,0.18664134]
[1771113319946,3.7e-07,69787.0,69786.0,0.18664134]
[1771113321146,7.6e-07,69787.0,69786.0,0.18664134]
[1771113322246,0.04297397,69787.0,69786.0,0.18664134]
[1771113322449,0.01436,69800.0,69791.0,0.014336]
[1771113322750,0.01436,69802.0,69791.0,0.01436062]
[1771113323049,7e-07,69787.0,69786.0,0.14332]
[1771113323241,0.01436,69802.0,69791.0,0.014336]
[1771113323444,3.4e-07,69787.0,69786.0,0.14332]
[1771113323639,8.7e-07,69787.0,69786.0,0.15768]
[1771113323848,0.01436,69802.0,69792.0,0.014336]
[1771113324044,5.9e-07,69787.0,69786.0,0.14332]
[1771113324243,0.04297191,69787.0,69786.0,0.172017]
[1771113324444,0.01436,69802.0,69790.0,0.014336]
[1771113324752,5.5e-07,69787.0,69786.0,0.157657]
[1771113325048,1.4e-07,69787.0,69786.0,0.014337]
[1771113325350,0.73555005,69793.0,69786.0,0.04875985]
[1771113325538,0.73555005,69793.0,69786.0,0.01436]
[1771113325946,0.01436,69802.0,69786.0,0.01436]
[1771113326150,0.73555005,69801.0,69786.0,0.01436]
[1771113326451,0.73555005,69801.0,69787.0,0.014337]
[1771113326651,0.73555005,69801.0,69785.0,0.01436]
[1771113327041,0.73555005,69801.0,69785.0,0.028697]
[1771113327241,0.73555005,69801.0,69787.0,0.014336]
[1771113327443,0.73555005,69801.0,69790.0,0.028672]
[1771113327641,8.9e-07,69783.0,69782.0,0.39346016]
[1771113327843,0.01436,69802.0,69792.0,0.014336]
[1771113328043,0.01436,69802.0,69788.0,0.39352013]
[1771113328342,0.01436,69802.0,69793.0,0.10318004]
[1771113328544,0.01436,69802.0,69792.0,0.1175166]
[1771113328843,0.01436,69802.0,69794.0,0.08169222]
[1771113329049,0.01436,69802.0,69793.0,0.096029]
[1771113329244,0.01436,69802.0,69795.0,0.23011161]
[1771113329444,0.01436,69802.0,69795.0,0.014335]
[1771113329639,0.01436,69802.0,69796.0,0.08169523]
[1771113329844,0.73555005,69807.0,69796.0,0.22631135]
[1771113330045,0.15768,69806.0,69796.0,0.22631135]
[1771113330244,0.15768,69806.0,69796.0,0.15467401]
[1771113330451,0.15768,69806.0,69797.0,0.16429874]
[1771113330647,0.15768,69806.0,69797.0,0.0926614]
[1771113330950,0.15768,69806.0,69797.0,0.03535908]
[1771113331148,0.15768,69806.0,69791.0,0.00675297]
[1771113331344,0.73555005,69805.0,69793.0,0.014335]
[1771113331552,8.2e-07,69788.0,69782.0,0.014338]
[1771113331744,8.2e-07,69788.0,69781.0,0.41954575]
[1771113331745,0.73555005,69805.0,69796.0,0.014335]
[1771113332051,0.15768,69806.0,69797.0,0.39163307]
[1771113332247,0.15768,69806.0,69792.0,0.39163307]
[1771113332248,0.89323005,69806.0,69792.0,0.21457087]
[1771113332449,0.89323005,69806.0,69783.0,0.01436]
[1771113332656,0.89323005,69806.0,69789.0,0.21443383]
[1771113332855,0.89323005,69806.0,69789.0,0.15167477]
[1771113333154,0.89323005,69806.0,69790.0,0.014336]
[1771113333348,0.89323005,69806.0,69790.0,0.3661086]
[1771113333553,0.89323005,69806.0,69790.0,0.21443383]
[1771113333856,0.89323005,69806.0,69791.0,0.15494328]
[1771113334051,0.89323005,69806.0,69791.0,0.36943044]
[1771113334256,0.89323005,69806.0,69791.0,0.21448716]
[1771113334457,0.89323005,69806.0,69790.0,0.15494328]
[1771113334656,0.89323005,69806.0,69792.0,0.15494328]
[1771113334854,0.89323005,69806.0,69791.0,0.21453793]
[1771113335053,0.89323005,69806.0,69793.0,0.21453793]
[1771113335251,0.89323005,69806.0,69792.0,0.16414845]
[1771113335451,0.89323005,69806.0,69791.0,0.21453793]
[1771113335653,0.89323005,69806.0,69793.0,0.21602151]
[1771113336052,0.89323005,69806.0,69792.0,0.12159628]
[1771113336248,0.89323005,69806.0,69791.0,0.014336]
[1771113336452,0.89323005,69806.0,69791.0,0.17468207]
[1771113336655,0.89323005,69806.0,69792.0,0.21570493]
[1771113337066,0.89323005,69806.0,69792.0,0.23004093]
[1771113338864,0.89323005,69806.0,69796.0,0.014335]
[1771113339065,0.89323005,69806.0,69797.0,0.014335]
[1771113339265,0.89323005,69806.0,69797.0,0.23053844]
[1771113339463,0.89323005,69806.0,69798.0,0.16481723]
[1771113340768,0.89323005,69806.0,69799.0,0.014334]
[1771113341262,0.89323005,69806.0,69800.0,0.014334]
[1771113341871,0.89323005,69806.0,69799.0,0.014334]
[1771113343165,0.89323005,69806.0,69798.0,0.09317064]
[1771113343370,0.89323005,69806.0,69799.0,0.014334]
[1771113343768,0.89323005,69806.0,69798.0,0.03587031]
[1771113343965,0.89323005,69806.0,69798.0,0.014334]
[1771113344165,5.9e-07,69788.0,69778.0,0.014338]
[1771113344370,0.01436,69801.0,69797.0,0.028668]
[1771113344569,0.01436,69801.0,69792.0,0.35220656]
[1771113344769,0.01436,69801.0,69798.0,0.09220509]
[1771113344964,0.01436,69801.0,69794.0,0.014335]
[1771113345169,0.01436,69801.0,69795.0,0.014335]
[1771113345368,0.01436,69801.0,69797.0,0.29399564]
[1771113345568,0.01436,69801.0,69797.0,0.07284832]
[1771113345874,0.01436,69801.0,69798.0,0.16092614]
[1771113346175,0.01436,69801.0,69796.0,0.37587114]
[1771113346470,0.01436,69801.0,69796.0,0.30423585]
[1771113346671,0.01436,69801.0,69796.0,0.23259851]
[1771113346874,0.01436,69803.0,69798.0,0.014334]
[1771113347071,0.01436,69803.0,69796.0,0.13233011]
[1771113347271,0.01436,69803.0,69800.0,0.014334]
[1771113347473,0.01436,69803.0,69799.0,0.014334]
[1771113347668,0.01436,69803.0,69797.0,0.17084129]
[1771113347876,0.01436,69803.0,69795.0,0.01436]
[1771113348074,0.01436,69803.0,69798.0,0.10407113]
[1771113348275,0.01436,69803.0,69798.0,0.014334]
[1771113348774,0.01436,69803.0,69797.0,0.014335]
[1771113349072,1.6e-07,69792.0,69788.0,0.014336]
[1771113349268,0.01436,69803.0,69792.0,0.014336]
[1771113349468,0.01436,69803.0,69796.0,0.31023036]
[1771113349669,0.01436,69803.0,69796.0,0.23859322]
[1771113350061,0.01436,69803.0,69796.0,0.16695588]
[1771113350265,0.01436,69803.0,69796.0,0.10965354]
[1771113350476,0.01436,69803.0,69796.0,0.0523504]
[1771113350673,0.01436,69803.0,69797.0,0.21376685]
[1771113350973,0.01436,69803.0,69798.0,0.07988583]
[1771113351174,0.01436,69803.0,69798.0,0.09421983]
[1771113351468,0.02035575,69792.0,69791.0,0.71668006]
[1771113351672,0.01436,69803.0,69793.0,0.014335]
[1771113351867,0.01436,69803.0,69798.0,0.09089035]
[1771113352069,0.01436,69803.0,69796.0,0.15867451]
[1771113352374,1.4e-07,69792.0,69791.0,0.71668006]
[1771113352573,0.01436,69803.0,69797.0,0.17203225]
[1771113352763,0.01436,69803.0,69797.0,0.10039614]
[1771113352962,0.01436,69803.0,69797.0,0.014335]
[1771113353165,3.2e-07,69792.0,69786.0,0.157657]
[1771113353368,0.01436,69803.0,69798.0,0.08941424]
[1771113353569,0.01436,69803.0,69796.0,0.31875639]
[1771113354077,0.01436,69803.0,69797.0,0.10680563]
[1771113354277,0.01436,69803.0,69797.0,0.12114063]
[1771113354474,0.01436,69809.0,69803.0,0.014333]
[1771113354674,0.01436,69810.0,69802.0,0.014334]
[1771113354868,0.01436,69810.0,69806.0,0.014333]
[1771113355173,0.01436,69816.0,69807.0,0.16171113]
[1771113355370,0.01436,69816.0,69807.0,0.09008364]
[1771113355569,0.01436,69816.0,69806.0,0.014333]
[1771113355884,0.01436,69816.0,69807.0,0.09706721]
[1771113356068,0.01436,69816.0,69808.0,0.014332]
[1771113356367,0.01436,69816.0,69809.0,0.08273726]
[1771113356775,0.01436,69816.0,69808.0,0.09304428]
[1771113356975,0.01436,69816.0,69807.0,0.014333]
[1771113357178,0.01436,69816.0,69809.0,0.16466828]
[1771113357477,0.01436,69816.0,69808.0,0.09303957]
[1771113357773,0.01436,69816.0,69806.0,0.16046804]
[1771113357970,0.01436,69816.0,69809.0,0.16046804]
[1771113358163,0.01436,69816.0,69807.0,0.014332]
[1771113358164,0.01436,69816.0,69808.0,0.17480004]
[1771113358573,0.01436,69816.0,69808.0,0.014332]
[1771113358771,0.01436,69816.0,69809.0,0.08116839]
[1771113358970,0.01436,69816.0,69809.0,0.00954439]
[1771113359166,0.01436,69816.0,69801.0,0.69769242]
[1771113359366,0.01436,69816.0,69807.0,0.014332]
[1771113359572,0.01436,69816.0,69809.0,0.08116672]
[1771113359768,0.01436,69816.0,69805.0,0.01436]
[1771113360070,0.01436,69816.0,69810.0,0.15633846]
[1771113360383,0.73877604,69816.0,69805.0,0.01436]
[1771113360579,5e-08,69799.0,69797.0,0.73101506]
[1771113360877,0.73877604,69816.0,69809.0,0.07740253]
[1771113361074,0.73877604,69816.0,69805.0,0.09177013]
[1771113361276,0.73877604,69816.0,69810.0,0.07740603]
[1771113361472,0.73877604,69816.0,69789.0,0.014336]
[1771113361666,0.73877604,69816.0,69795.0,0.01436]
[1771113361865,0.73877604,69816.0,69798.0,0.36957459]
[1771113362072,0.73877604,69816.0,69796.0,0.29794238]
[1771113362277,0.73877604,69816.0,69799.0,0.36957459]
[1771113362472,0.73877604,69816.0,69799.0,0.29793724]
[1771113362674,0.73877604,69816.0,69796.0,0.21363868]
[1771113362978,0.73877604,69816.0,69800.0,0.25263806]
[1771113363177,0.73877604,69816.0,69798.0,0.21363868]
[1771113363476,0.73877604,69816.0,69801.0,0.18335695]
[1771113363678,0.73877604,69816.0,69799.0,0.05087765]
[1771113363873,0.73877604,69816.0,69802.0,0.08194644]
[1771113364077,0.73877604,69816.0,69802.0,0.01031013]
[1771113364278,0.73877604,69816.0,69800.0,0.1861136]
[1771113364479,0.73877604,69816.0,69801.0,0.01031013]
[1771113364779,0.73877604,69816.0,69802.0,0.11448241]
[1771113364975,0.73877604,69816.0,69802.0,0.04284512]
[1771113365175,0.73877604,69816.0,69798.0,0.06994314]
[1771113365478,0.73877604,69816.0,69800.0,0.04284512]
[1771113365680,0.73877604,69816.0,69798.0,0.02208746]
[1771113365878,0.73877604,69816.0,69794.0,0.01436]
[1771113366273,0.73877604,69816.0,69797.0,0.014335]
[1771113366472,8e-07,69790.0,69789.0,0.8960081]
[1771113366779,0.01436,69803.0,69801.0,0.014334]
[1771113366979,0.01436,69806.0,69798.0,0.71668006]
[1771113367175,0.01436,69806.0,69802.0,0.014334]
[1771113367372,0.72441604,69817.0,69802.0,0.014334]
[1771113367573,0.88205604,69816.0,69798.0,0.65944225]
[1771113367768,0.88205604,69815.0,69797.0,0.01436]
[1771113367971,0.14328,69814.0,69797.0,0.028695]
[1771113368280,0.14328,69814.0,69797.0,0.01436]
[1771113368883,0.14328,69814.0,69801.0,0.014334]
[1771113369082,0.14328,69814.0,69797.0,0.01436]
[1771113369581,0.14328,69814.0,69797.0,0.028694]
[1771113369776,0.14328,69814.0,69802.0,0.014334]
[1771113369969,0.14328,69814.0,69798.0,0.70237816]
[1771113370175,0.14328,69814.0,69799.0,0.71668006]
[1771113370372,0.14328,69814.0,69801.0,0.014334]
[1771113370681,0.14328,69814.0,69799.0,0.60208017]
[1771113370980,2.6e-07,69797.0,69795.0,0.71668006]
[1771113371181,0.01436,69808.0,69796.0,0.01436]
[1771113371377,0.73877604,69808.0,69796.0,0.01436]
[1771113371578,0.07163385,69797.0,69796.0,0.028695]
[1771113371777,0.73877604,69808.0,69796.0,0.028695]
[1771113372086,7.6e-07,69791.0,69790.0,0.014336]
[1771113372379,0.73877604,69808.0,69790.0,0.01436]
[1771113372580,4.3e-07,69791.0,69790.0,0.028696]
[1771113372775,0.73877604,69808.0,69792.0,0.014336]
[1771113372976,0.14328,69814.0,69800.0,0.014334]
[1771113372977,0.01436,69807.0,69800.0,0.014334]
[1771113373284,0.01436,69807.0,69797.0,0.01436]
[1771113373585,0.01436,69807.0,69801.0,0.00197788]
[1771113373786,0.01436,69807.0,69802.0,0.014334]
[1771113373976,0.01436,69807.0,69797.0,0.77645308]
[1771113374177,0.01436,69807.0,69797.0,0.7478234]
[1771113374377,0.01436,69808.0,69797.0,0.67618831]
[1771113374576,0.01436,69808.0,69797.0,0.604552]
[1771113374777,0.01436,69808.0,69801.0,0.014334]
[1771113374977,0.01436,69808.0,69797.0,0.56158368]
[1771113375181,0.01436,69808.0,69799.0,0.77642708]
[1771113375381,0.01436,69808.0,69799.0,0.73345971]
[1771113375579,0.01436,69808.0,69803.0,0.014333]
[1771113375778,0.01436,69808.0,69801.0,0.014334]
[1771113375978,3.4e-07,69797.0,69796.0,0.76209308]
[1771113376180,0.72761668,69817.0,69803.0,0.014333]
[1771113376379,0.88525668,69816.0,69801.0,0.014334]
[1771113376582,6.9e-07,69797.0,69796.0,0.76209308]
[1771113376783,0.01436,69810.0,69796.0,0.76209308]
[1771113376984,4.7e-07,69797.0,69796.0,0.76209308]
[1771113377280,4.6e-07,69797.0,69796.0,0.77645308]
[1771113377486,0.01436,69810.0,69802.0,0.014334]
[1771113377882,6e-08,69797.0,69796.0,0.76209308]
[1771113378186,0.01436,69810.0,69801.0,0.0017]
[1771113378382,4.7e-07,69797.0,69796.0,0.77645308]
[1771113378584,0.01436,69810.0,69803.0,0.014333]
[1771113378785,0.01436,69810.0,69796.0,0.77645308]
[1771113378981,5e-08,69797.0,69796.0,0.01436]
[1771113379182,0.01436,69810.0,69798.0,0.73346012]
[1771113379389,0.01436,69810.0,69802.0,0.014333]
[1771113380087,0.01436,69810.0,69800.0,0.014334]
[1771113380286,6e-08,69797.0,69796.0,0.01436]
[1771113380483,0.01436,69810.0,69796.0,0.028695]
[1771113380685,0.01436,69810.0,69800.0,0.028668]
[1771113380888,5e-07,69797.0,69796.0,0.028695]
[1771113381189,0.01436,69810.0,69802.0,0.014333]
[1771113381383,2.9e-07,69797.0,69796.0,0.028695]
[1771113381584,0.01436,69810.0,69796.0,0.028695]
[1771113381780,0.01436,69810.0,69801.0,0.028668]
[1771113381991,0.01436,69810.0,69796.0,0.01436]
[1771113381992,9e-08,69797.0,69796.0,0.01436]
[1771113382183,0.01436,69810.0,69801.0,0.014334]
[1771113382383,6.7e-07,69797.0,69796.0,0.028695]
[1771113382584,9e-08,69797.0,69796.0,0.028695]
[1771113383081,9e-08,69797.0,69796.0,0.00133471]
[1771113383280,0.04161122,69791.0,69790.0,0.014336]
[1771113383488,0.72761668,69806.0,69794.0,0.014335]
[1771113383689,0.72761668,69806.0,69794.0,0.01436]
[1771113383892,3e-08,69791.0,69789.0,0.014336]
[1771113384187,0.72761668,69806.0,69795.0,0.014335]
[1771113384394,8.6e-07,69791.0,69790.0,0.76209308]
[1771113384589,0.01436,69810.0,69792.0,0.76209308]
[1771113384889,0.01436,69810.0,69801.0,0.014334]
[1771113385293,0.72761668,69817.0,69801.0,0.014334]
[1771113385491,0.88525668,69816.0,69800.0,0.014334]
[1771113385691,0.14328,69815.0,69796.0,0.63318883]
[1771113385897,0.87089668,69815.0,69796.0,0.60455451]
[1771113386197,0.87089668,69815.0,69796.0,0.56158661]
[1771113386395,0.87089668,69815.0,69796.0,0.48995029]
[1771113386592,0.87089668,69815.0,69800.0,0.014334]
[1771113386793,0.87089668,69815.0,69799.0,0.01436]
[1771113386992,0.87089668,69815.0,69798.0,0.01436]
[1771113387194,7.3e-07,69796.0,69794.0,0.157615]
[1771113387394,0.01436,69810.0,69800.0,0.014334]
[1771113387594,9.3e-07,69796.0,69795.0,0.01436]
[1771113387788,1.1e-07,69796.0,69795.0,0.01436]
[1771113388297,1.1e-07,69796.0,69795.0,0.01486]
[1771113388893,1.1e-07,69796.0,69795.0,0.029195]
[1771113390593,1.4e-07,69796.0,69795.0,0.029195]
[1771113390791,0.01436,69810.0,69795.0,0.01486]
[1771113390997,0.07163714,69796.0,69795.0,0.029195]
[1771113391196,0.74197668,69810.0,69795.0,0.029195]
[1771113391393,0.74197668,69810.0,69796.0,0.01436]
[1771113391600,0.05727734,69796.0,69795.0,0.014835]
[1771113391800,0.74197668,69810.0,69795.0,0.028695]
[1771113392001,0.74197668,69810.0,69795.0,0.036695]
[1771113392202,0.07163734,69796.0,69795.0,0.036695]
[1771113392403,0.74197668,69810.0,69795.0,0.036695]
[1771113392901,0.07163735,69796.0,69795.0,0.036695]
[1771113393110,0.74197668,69810.0,69795.0,0.036695]
[1771113393304,0.74197668,69810.0,69796.0,0.014335]
[1771113393605,0.74197668,69810.0,69795.0,0.036695]
[1771113393606,3.4e-07,69796.0,69795.0,0.028695]
[1771113393805,3.4e-07,69796.0,69795.0,0.01436]
[1771113394211,3.4e-07,69796.0,69795.0,0.050795]
[1771113394597,0.74197668,69810.0,69798.0,0.014334]
[1771113394910,9.4e-07,69796.0,69795.0,0.028695]
[1771113395109,0.04296793,69796.0,69795.0,0.01436]
[1771113395302,0.74197668,69810.0,69798.0,0.014334]
[1771113395498,9.3e-07,69796.0,69795.0,0.01476]
[1771113395803,9.3e-07,69796.0,69795.0,0.028695]
[1771113396004,9.3e-07,69796.0,69795.0,0.057495]
[1771113396607,1.4e-07,69796.0,69795.0,0.057495]
[1771113399218,1.3e-07,69796.0,69795.0,0.057495]
[1771113400025,1.4e-07,69796.0,69795.0,0.04316]
[1771113400221,0.88525668,69810.0,69797.0,0.014334]
[1771113400422,0.04296814,69796.0,69795.0,0.04316]
[1771113400717,0.88525668,69810.0,69797.0,0.0035]
[1771113400923,0.06813714,69796.0,69795.0,0.0288]
[1771113401125,0.88525668,69810.0,69798.0,0.16311679]
[1771113401517,0.88525668,69810.0,69795.0,0.028695]
[1771113401821,0.07163529,69796.0,69795.0,0.028695]
[1771113402026,0.75200899,69807.0,69796.0,0.15170413]
[1771113402417,0.75200899,69807.0,69795.0,0.05065358]
[1771113402619,0.07163735,69796.0,69795.0,0.028695]
[1771113402821,0.75200899,69807.0,69795.0,0.028695]
[1771113403016,0.75200899,69807.0,69795.0,0.10876179]
[1771113403219,3.4e-07,69796.0,69795.0,0.10876179]
[1771113404631,5.2e-07,69796.0,69795.0,0.09442679]
[1771113404827,0.04296794,69796.0,69795.0,0.09442679]
[1771113405028,0.76243102,69809.0,69798.0,0.014334]
[1771113405330,0.76243102,69809.0,69799.0,0.02195858]
[1771113405528,0.76243102,69809.0,69797.0,0.65970063]
[1771113405725,0.76243102,69809.0,69800.0,0.08006679]
[1771113405929,0.76243102,69809.0,69800.0,0.00843047]
[1771113406227,2.4e-07,69796.0,69795.0,0.01436]
[1771113406429,9.3e-07,69796.0,69795.0,0.01436]
[1771113406619,0.76243102,69809.0,69798.0,0.014334]
[1771113406824,9.3e-07,69796.0,69795.0,0.02279047]
[1771113407128,9.3e-07,69796.0,69795.0,0.01436]
[1771113407325,9.3e-07,69796.0,69795.0,0.02279047]
[1771113407530,9.3e-07,69796.0,69795.0,0.03712547]
[1771113407724,0.04296794,69796.0,69795.0,0.02279047]
[1771113407932,0.76243102,69809.0,69798.0,0.014334]
[1771113408327,9.3e-07,69796.0,69795.0,0.01436]
[1771113408524,4.6e-07,69796.0,69795.0,0.01436]
[1771113409328,5.7e-07,69796.0,69795.0,0.01436]
[1771113409529,9.4e-07,69796.0,69795.0,0.01436]
[1771113410033,0.76243102,69809.0,69796.0,0.014335]
[1771113410229,9.3e-07,69796.0,69795.0,0.01436]
[1771113411233,0.04296793,69796.0,69795.0,0.01436]
[1771113411534,9.4e-07,69796.0,69795.0,0.01436]
[1771113411736,0.76243102,69809.0,69798.0,0.014334]
[1771113411936,9.3e-07,69796.0,69795.0,0.01436]
[1771113412131,9.3e-07,69796.0,69795.0,0.028695]
[1771113413040,0.76243102,69809.0,69797.0,0.014334]
[1771113413337,3.4e-07,69796.0,69795.0,0.01436]
[1771113413530,1.4e-07,69796.0,69795.0,0.01436]
[1771113413929,0.76243102,69809.0,69795.0,0.01436]
[1771113414133,9.3e-07,69796.0,69795.0,0.028695]
[1771113414336,3.4e-07,69796.0,69795.0,0.01436]
[1771113414828,3.4e-07,69796.0,69795.0,0.77076845]
[1771113415032,0.15764,69810.0,69798.0,0.69910331]
[1771113415238,0.15764,69810.0,69802.0,0.014333]
[1771113415438,4.7e-07,69796.0,69795.0,0.01436]
[1771113415637,0.15764,69810.0,69799.0,0.014334]
[1771113415940,7e-07,69796.0,69795.0,0.01436]
[1771113416135,0.15764,69810.0,69797.0,0.014335]
[1771113416337,5e-07,69796.0,69795.0,0.028695]
[1771113416537,0.04296749,69796.0,69795.0,0.028695]
[1771113416838,0.014329,69827.0,69795.0,0.028695]
[1771113416839,0.76243102,69831.0,69799.0,0.74207345]